Workbook

Sheet Introduction
A5: remarks? tony.opsomer@gmail.com | E5: version 2022-03-16
B7: C172SP | C7: Weight and balance form
C9: Performance form
A17: Vliegclub Grimbergen BE.DTO.113
A18: download the latest version from https://goahead.classy.be/weight-balance/

Sheet W&B FORM
B1: =Introduction!A5 -> remarks? tony.opsomer@gmail.com | O1: =Introduction!E5 -> version 2022-03-16
B2: Weight and Balance form C172SP OO-VCK | P2: BE.DTO.113 | T2: Calculations
H5: Fuel quantity | I5: Weight | J5: Arm | K5: Moment | M5: Form validity checker
H6: [l] | I6: [kg] | J6: [m] | K6: [m.kg] | M6: Don't forget: always do a manual check on your data!!
B7: Basic empty weight (includes engine oil and unusable fuel) | I7: ='OO-VCK'!C10 -> 780 | J7: ='OO-VCK'!C11 -> 1.01 | K7: ='OO-VCK'!C12 -> 787.1
B8: Usable fuel | D8: mean arm: | E8: 48 | F8: in | H8: 0 | I8: =H8*0.72 -> 0 | J8: =E8*0.0254 -> 1.2192 | K8: =IF(E8="SELECT AIRPLANE","SELECT AIRPLANE",I8*J8) -> 0 | M8: =IF(H8="","COMPLETE THE FORM",IF(H8>'OO-VCK'!E4,"FUEL TANK OVERFLOW","FUEL QUANTITY WITHIN LIMIT")) -> FUEL QUANTITY WITHIN LIMIT | O8: =IF(OR(H8="",I9="",I10="",I11="",,I12="",I13="",I14=""),"COMPLETE THE FORM",IF(SUM(I7:I14)>'OO-VCK'!C15,"TOO MUCH USEFUL LOAD",IF(SUM(I7:I14)>'OO-VCK'!C16,"TOTAL USEFUL LOAD WITHIN LIMIT","TOTAL USEFUL LOAD WITHIN LIMIT"))) -> TOTAL USEFUL LOAD WITHIN LIMIT
B9: Pilot | D9: mean arm: | E9: 37 | F9: in | I9: 0 | J9: =E9*0.0254 -> 0.9398 | K9: =I9*J9 -> 0
B10: Front passenger | D10: mean arm: | E10: 37 | F10: in | I10: 0 | J10: =E10*0.0254 -> 0.9398 | K10: 0
B11: Rear passenger 1 | D11: mean arm: | E11: 73 | F11: in | I11: 0 | J11: 1.8542 | K11: 0
B12: Rear passenger 2 | D12: mean arm: | E12: 73 | F12: in | I12: 0 | J12: 1.8542 | K12: 0
B13: Baggage area 1 | D13: mean arm: | E13: 95 | F13: in | I13: 0 | J13: 2.413 | K13: 0 | M13: =IF(OR(I13="",I14=""),"COMPLETE THE FORM",IF(I13>'OO-VCK'!E19,"TOO MUCH BAGGAGE IN AREA 1",IF(I14>'OO-VCK'!E20,"TOO MUCH BAGGAGE IN AREA 2",IF(SUM(I13:I14)>'OO-VCK'!E19,"TOO MUCH BAGGAGE IN AREA 1 AND 2","PARTITIONING OF BAGGAGE IN AREAS 1 AND 2 WITHIN LIMITS")))) -> PARTITIONING OF BAGGAGE IN AREAS 1 AND 2 WITHIN LIMITS
B14: Baggage area 2 | D14: mean arm: | E14: 123 | F14: in | I14: 0 | J14: 3.1242 | K14: 0
B15: RAMP WEIGHT AND MOMENT | I15: =IF(OR(H8="",I9="",I10="",I11="",,I12="",I13="",I14=""),"COMPLETE THE FORM",SUM(I7:I14)) -> 780 | J15: =IF(I15="COMPLETE THE FORM","COMPLETE THE FORM",K15/I15) -> 1.009102564 | K15: =IF(OR(H8="",I9="",I10="",I11="",,I12="",I13="",I14=""),"COMPLETE THE FORM",SUM(K7:K14)) -> 787.1 | M15: =IF(I15="COMPLETE THE FORM","COMPLETE THE FORM","CHECK RESULTS IN GRAPH BELOW") -> CHECK RESULTS IN GRAPH BELOW
B16: Fuel allowance for engine start, taxi and runup | H16: ='C172SP Performance specs'!F60*3.785412 -> 5.2995768 | I16: =H16*0.72 -> 3.815695296 | J16: =E8*0.0254 -> 1.2192 | K16: =I16*J16 -> 4.652095705
B17: TAKE-OFF WEIGHT AND MOMENT | I17: =IF(OR(H8="",I9="",I10="",I11="",,I12="",I13="",I14="",H16=""),"COMPLETE THE FORM",I15-I16) -> 776.1843047 | J17: =IF(I17="COMPLETE THE FORM","COMPLETE THE FORM",K17/I17) -> 1.008069732 | K17: =IF(OR(H8="",I9="",I10="",I11="",,I12="",I13="",I14="",H16=""),"COMPLETE THE FORM",K15-K16) -> 782.4479043 | M17: =IF(I17="COMPLETE THE FORM","COMPLETE THE FORM","CHECK RESULTS IN GRAPH BELOW") -> CHECK RESULTS IN GRAPH BELOW
B18: Total trip time | F18: hh:mm | H18: =(HOUR(E18)*60+MINUTE(E18))/60*'OO-VCK'!E6 -> 0 | I18: =H18*0.72 -> 0 | J18: =E8*0.0254 -> 1.2192 | K18: =I18*J18 -> 0 | M18: =IF(OR(H8="",I9="",I10="",I11="",,I12="",I13="",I14="",H16="",E18=""),"COMPLETE THE FORM",IF((H18+H16)>H8,"NOT ENOUGH FUEL TO COMPLETE THE TRIP",IF((H18+H16)>(H8-'OO-VCK'!E6/60*45),"DANGER! DANGER! FUEL RESERVE LESS THAN 45 MIN","TRIP TIME WITHIN LIMIT"))) -> COMPLETE THE FORM
B19: LANDING WEIGHT AND MOMENT | I19: =IF(OR(H8="",I9="",I10="",I11="",,I12="",I13="",I14="",H16="",E18=""),"COMPLETE THE FORM",IF(M18="TRIP TIME TOO BIG","CHECK TRIP TIME",I17-I18)) -> COMPLETE THE FORM | J19: =IF(I19="COMPLETE THE FORM","COMPLETE THE FORM",IF(I19="CHECK TRIP TIME","CHECK TRIP TIME",K19/I19)) -> COMPLETE THE FORM | K19: =IF(OR(H8="",I9="",I10="",I11="",,I12="",I13="",I14="",H16="",E18=""),"COMPLETE THE FORM",IF(M18="TRIP TIME TOO BIG","CHECK TRIP TIME",K17-K18)) -> COMPLETE THE FORM | M19: =IF(I19="COMPLETE THE FORM","COMPLETE THE FORM",IF(I19="CHECK TRIP TIME","","CHECK RESULTS IN GRAPH BELOW")) -> COMPLETE THE FORM
T28: conversion minutes to hh:mm notation
W29: hh | X29: mm
T30: total minutes | W30: =TRUNC(U30/60,0) -> 0 | X30: =ROUND((U30/60-TRUNC(U30/60))*60,0) -> 0
W32: hh:mm | X32: =TIME(W30,X30,) -> 00:00:00
B48: This document is provided for secondary flightplanning and navigation only. It is the user/pilot's sole responsibility to verify the correctness of all information provided by this sheet.

Sheet Performance FORM
C1: =Introduction!A5 -> remarks? tony.opsomer@gmail.com | I1: =Introduction!E5 -> version 2022-03-16
C2: Performance form C172 OO-VCK | I2: BE.DTO.113 | M2: Calculations
G3: Form validity checker
G4: Don't forget: always do a manual check on your data!!
B5: TAKE-OFF | C5: Take-off weight [kg] | E5: =IF(ISERROR('W&B FORM'!I17*2.204623),"FIRST CALCULATE W&B",'W&B FORM'!I17) -> 776.1843047 | G5: =IF(E5="FIRST CALCULATE W&B","FIRST CALCULATE W&B DATA","") -> 
C6: ICAO airport name
C7: MSL Altitude [ft] | G7: =IF(E7="","COMPLETE THE FORM","AIRPORT ALTITUDE OK") -> COMPLETE THE FORM
C8: QNH [hPa or mbar] | G8: =IF(E8="","COMPLETE THE FORM",IF(OR(E8<960,E8>1100),"INVALID QNH","QNH OK")) -> COMPLETE THE FORM
C9: Pressure altitude [ft] | E9: =IF(OR(E7="",E8=""),"COMPLETE THE FORM",IF(E8>1013,(E7-(E8-1013)*30),(E7+(1013-E8)*30))) -> COMPLETE THE FORM | G9: =IF(OR(E9="",E9="COMPLETE THE FORM"),"COMPLETE THE FORM",IF(E9>3000,"LEANING OF MIXTURE IS RECOMMENDED","LEANING OF MIXTURE NOT RECOMMENDED")) -> COMPLETE THE FORM
C10: OAT Temperature [°C] | G10: =IF(E10="","COMPLETE THE FORM",IF(E10>=40,"TEMPERATURE TOO HIGH","TEMPERATURE OK")) -> COMPLETE THE FORM | M10: Runway type dropdown list items
C11: Density altitude [ft] | E11: =IF(OR(E8="",E7="",E10=""),"COMPLETE THE FORM",E9+120*(E10-(15-(1.98/1000*E9)))) -> COMPLETE THE FORM | M11: DEFINE TYPE
C12: Wind | M12: PAVED
D13: Direction [°] | G13: =IF(E13="","COMPLETE THE FORM",IF(OR(E13<0,E13>359),"INVALID WIND DIRECTION","WIND DIRECTION OK")) -> COMPLETE THE FORM | I13: =IF(OR(E13="",E14="",E16=""),"COMPLETE THE FORM",IF(E14<0,"CHECK WIND VELOCITY",IF(ABS(O17)>=15,"CROSSWIND TOO STRONG",IF(R16="USE OTHER RUNWAY DIRECTION","TOO MUCH TAILWIND, USE OTHER RUNWAY DIRECTION",ROUND(ABS(O16),1)&"kts "&P16&" AND " & ROUND(ABS(O17),1)&"kts "&P17)))) -> COMPLETE THE FORM | M13: GRASS
D14: Velocity [kts] | G14: =IF(E14="","COMPLETE THE FORM",IF(E14<0,"INVALID WIND VELOCITY","WIND VELOCITY OK")) -> COMPLETE THE FORM
C15: Runway | M15: Takeoff wind calculations | R15: change in takeoff distance
D16: Runway | G16: =IF(E16="","COMPLETE THE FORM",IF(OR(E16<0,E16>35),"INVALID QFU","QFU OK")) -> COMPLETE THE FORM | M16: headwind component [kts] | O16: =E14*COS((ABS((E16*10)-E13)*PI()/180)) -> 0 | P16: =IF(O16>=0,"HEADWIND",IF(O16<0,"TAILWIND","")) -> HEADWIND | R16: =IF(O16>=0,O16/9*-0.1,IF(AND(O16<0,O16>=-10),ABS(O16/2*0.1),"USE OTHER RUNWAY DIRECTION")) -> 0
D17: type | E17: 1 | G17: =IF(E17="","",IF(E17=1,"DEFINE TYPE",IF(E17=2,"PAVED",IF(E17=3,"GRASS")))) -> DEFINE TYPE | M17: crosswind component [kts] | O17: =E14*SIN((ABS((E16*10)-E13)*PI()/180)) -> 0 | P17: CROSSWIND
D18: TORA [m] | G18: =IF(E18="","COMPLETE THE FORM",IF(E18<0,"INVALID RUNWAY LENGTH VALUE","RUNWAY LENGTH VALUE OK")) -> COMPLETE THE FORM
C19: Safety margin for takeoff distance | E19: 0.5 | M19: Takeoff calculations
C20: Take-off (flaps 10°, full throttle prior to brake release) | M20: Weight: | N20: =IF(OR(E5="",E5=0,E5="FIRST CALCULATE W&B"),"",E5*2.204623) -> 1711.19377 | O20: lbs | P20: -> taking this (higher) weight from takeoff data: | T20: =IF(N20<=2200,2200,IF(N20<=2400,2400,IF(N20<=2550,2550,IF(N20>2550,"OVERWEIGHT")))) -> 2200 | U20: lbs | W20: corresponding speeds
D21: lift off IAS speed [kts] | E21: =IF(ISERROR(Y21),"COMPLETE THE FORM",Y21) -> 44 | X21: lift off | Y21: =VLOOKUP($T$20,'C172SP Performance specs'!B7:D33,2,FALSE) -> 44
D22: IAS speed at 50 ft [kts] | E22: =IF(ISERROR(Y22),"COMPLETE THE FORM",Y22) -> COMPLETE THE FORM | M22: look between PA [ft] | P22: needed value [ft] | X22: at 50 ft | Y22: =VLOOKUP($T$20,'C172SP Performance specs'!B8:D34,3,FALSE) -> 
D23: ground roll [m] | E23: =IF(E9="COMPLETE THE FORM","COMPLETE THE FORM",IF(R16="USE OTHER RUNWAY DIRECTION","CHANGE RUNWAY",IF(OR(E9>=8000,E10>=40),"NO DATA AVAILABLE",IF(G17="PAVED",((1+R16)*P89*(1+E19))*0.3048,IF(G17="GRASS",(((1+R16)*P89+(0.15*P89))*(1+E19))*0.3048,"COMPLETE THE FORM"))))) -> COMPLETE THE FORM | M23: =IF(E9<=0,0,LEFT(E9/1000,1)*1000) ->  | N23: =IF(E9<=0,0,LEFT(E9/1000+1,1)*1000) ->  | P23: =E9 -> COMPLETE THE FORM
D24: total to clear 50ft OBS [m] | E24: =IF(E9="COMPLETE THE FORM","COMPLETE THE FORM",IF(R16="USE OTHER RUNWAY DIRECTION","CHANGE RUNWAY",IF(OR(E9>=8000,E10>=40),"NO DATA AVAILABLE",IF(G17="PAVED",((1+R16)*Q89*(1+E19))*0.3048,IF(G17="GRASS",(((1+R16)*Q89+(0.15*P89))*(1+E19))*0.3048,"COMPLETE THE FORM"))))) -> COMPLETE THE FORM | G24: =IF(E9="COMPLETE THE FORM","COMPLETE THE FORM",IF(OR(E9>=8000,E10>=40),"NO DATA AVAILABLE, CHECK P.A. / TEMP",IF(G17="DEFINE TYPE","DEFINE TYPE OF RUNWAY",IF(E18="","COMPLETE THE FORM",IF(E24="CHANGE RUNWAY","TOO MUCH TAILWIND, USE OTHER RUNWAY DIRECTION",IF(E24>E18,"RUNWAY TOO SHORT",IF(E24<=E18,"RUNWAY LENGTH SUFFICIENT"))))))) -> COMPLETE THE FORM | M24: look between temperatures [°C] | P24: needed value [°C]
B25: CRUISE | C25: Cruising weight [kg] | E25: =E5 -> 776.1843047 | M25: =IF(E10<=0,0,LEFT(E10/10,1)*10) -> 0 | N25: =IF(E10<=0,0,LEFT(E10/10+1,1)*10) -> 0 | P25: =E10 -> 0
C26: MSL Cruising altitude [ft] | E26: 2400 | G26: =IF(E26="","COMPLETE THE FORM",IF(E26<=0,"CRUISING ALTITUDE MUST GREATER THAN 0 FT","CRUISING ALTITUDE OK")) -> CRUISING ALTITUDE OK
C27: QNH [hPa or mbar] | E27: 1000 | G27: =IF(E27="","COMPLETE THE FORM",IF(OR(E27<960,E27>1100),"INVALID QNH","QNH OK")) -> QNH OK
C28: Pressure altitude [ft] | E28: =IF(OR(E26="",E27=""),"COMPLETE THE FORM",IF(E27>1013,(E26-(E27-1013)*30),(E26+(1013-E27)*30))) -> 2790 | G28: =IF(OR(E28="",E28="COMPLETE THE FORM"),"COMPLETE THE FORM",IF(E28<0,"INVALID MSL CRUISING ALTITUDE",IF(E28>3000,"LEANING OF MIXTURE RECOMMENDED",IF(OR(E28>12000,E28<2000),"NO DATA FOUND",IF(AND(E28>0,E28<=3000),"LEANING OF MIXTURE NOT RECOMMENDED",))))) -> LEANING OF MIXTURE NOT RECOMMENDED
C29: OAT Temperature at cruising altitude [°C] | E29: 10 | G29: =IF(OR(E29="",E26="",E27=""),"COMPLETE THE FORM",IF(AND(E29<=((15-(1.98/1000*E28))+20),E29>=((15-(1.98/1000*E28))-20)),"TEMPERATURE WITHIN DATA LIMITS","TEMPERATURE OUT OF DATA LIMITS")) -> TEMPERATURE WITHIN DATA LIMITS
C30: Desired %BHP-setting | E30: 1 | G30: =IF(E30=1,"COMPLETE THE FORM",M113) -> COMPLETE THE FORM
C31: Cruise performance
D32: RPM | E32: =IF(OR(E30=1,E29="",E27="",E26=""),"COMPLETE THE FORM",IF(G28="NO DATA FOUND","CHECK CRUISING ALT",IF(OR(M113="%BHP VALUE NOT FOUND IN DATA",ISERROR(R70)),"CHECK %BHP VALUE",IF(ABS(R116-O116)>20,"CHECK TEMPERATURE",R69/100)))) -> COMPLETE THE FORM
D33: KTAS [kts] | E33: =IF(OR(E30=1,E29="",E27="",E26=""),"COMPLETE THE FORM",IF(G28="NO DATA FOUND","CHECK CRUISING ALT",IF(OR(M113="%BHP VALUE NOT FOUND IN DATA",ISERROR(R70)),"CHECK %BHP VALUE",IF(ABS(R116-O116)>20,"CHECK TEMPERATURE",R70-2)))) -> COMPLETE THE FORM
D34: Fuel consumption [l/hr] | E34: =IF(OR(E30=1,E29="",E27="",E26=""),"COMPLETE THE FORM",IF(G28="NO DATA FOUND","CHECK CRUISING ALT",IF(OR(M113="%BHP VALUE NOT FOUND IN DATA",ISERROR(R70)),"CHECK %BHP VALUE",IF(ABS(R116-O116)>20,"CHECK TEMPERATURE",R71)))) -> COMPLETE THE FORM
B35: LANDING | C35: Landing weight [kg] | E35: =IF(ISERROR('W&B FORM'!I19*2.204623),"FIRST CALCULATE W&B",'W&B FORM'!I19) -> FIRST CALCULATE W&B | G35: =IF(E35="FIRST CALCULATE W&B","FIRST CALCULATE W&B DATA","") -> FIRST CALCULATE W&B DATA | N35: =M25 -> 0 | P35: =N25 -> 0
C36: ICAO airport name
C37: MSL Altitude [ft] | G37: =IF(E37="","COMPLETE THE FORM","AIRPORT ALTITUDE OK") -> COMPLETE THE FORM
C38: QNH [hPa or mbar] | G38: =IF(E38="","COMPLETE THE FORM",IF(OR(E38<960,E38>1100),"INVALID QNH","QNH OK")) -> COMPLETE THE FORM
C39: Pressure altitude [ft] | E39: =IF(OR(E37="",E38=""),"COMPLETE THE FORM",IF(E38>1013,(E37-(E38-1013)*30),(E37+(1013-E38)*30))) -> COMPLETE THE FORM | G39: =IF(OR(E39="",E39="COMPLETE THE FORM"),"COMPLETE THE FORM",IF(E39>3000,"LEANING OF MIXTURE IS RECOMMENDED","LEANING OF MIXTURE NOT RECOMMENDED")) -> COMPLETE THE FORM
C40: OAT Temperature [°C] | G40: =IF(E40="","COMPLETE THE FORM",IF(E40>=40,"TEMPERATURE TOO HIGH","TEMPERATURE OK")) -> COMPLETE THE FORM
C41: Density altitude [ft] | E41: =IF(OR(E38="",E37="",E40=""),"COMPLETE THE FORM",E39+120*(E40-(15-(1.98/1000*E39)))) -> COMPLETE THE FORM
C42: Wind
D43: Direction [°] | G43: =IF(E43="","COMPLETE THE FORM",IF(OR(E43<0,E43>359),"INVALID WIND DIRECTION","WIND DIRECTION OK")) -> COMPLETE THE FORM | I43: =IF(OR(E43="",E44="",E46=""),"COMPLETE THE FORM",IF(E44<0,"CHECK WIND VELOCITY",IF(ABS(O107)>=15,"CROSSWIND TOO STRONG",IF(R106="USE OTHER RUNWAY DIRECTION","TOO MUCH TAILWIND, USE OTHER RUNWAY DIRECTION",ROUND(ABS(O106),1)&"kts "&P106&" AND " & ROUND(ABS(O107),1)&"kts "&P107)))) -> COMPLETE THE FORM
D44: Velocity [kts] | G44: =IF(E44="","COMPLETE THE FORM",IF(E44<0,"INVALID WIND VELOCITY","WIND VELOCITY OK")) -> COMPLETE THE FORM
C45: Runway
D46: Runway | G46: =IF(E46="","COMPLETE THE FORM",IF(OR(E46<0,E46>35),"INVALID QFU","QFU OK")) -> COMPLETE THE FORM
D47: type | E47: 1 | G47: =IF(E47="","",IF(E47=1,"DEFINE TYPE",IF(E47=2,"PAVED",IF(E47=3,"GRASS")))) -> DEFINE TYPE
D48: LDA [m] | G48: =IF(E48="","COMPLETE THE FORM",IF(E48<0,"INVALID RUNWAY LENGTH VALUE","RUNWAY LENGTH VALUE OK")) -> COMPLETE THE FORM
C49: Safety margin for landing distance | E49: 0.5
C50: Landing (flaps 40°, power off, maximum braking)
D51: landing IAS speed [kts] | E51: 61
D52: ground roll [m] | E52: =IF(E39="COMPLETE THE FORM","COMPLETE THE FORM",IF(R106="USE OTHER RUNWAY DIRECTION","CHANGE RUNWAY",IF(OR(E39>=8000,E40>=40),"NO DATA AVAILABLE",IF(G47="PAVED",((1+R106)*P102*(1+E49))*0.3048,IF(G47="GRASS",(((1+R106)*P102+(0.45*P102))*(1+E49))*0.3048,"COMPLETE THE FORM"))))) -> COMPLETE THE FORM
D53: total to clear 50ft [m] | E53: =IF(E39="COMPLETE THE FORM","COMPLETE THE FORM",IF(R106="USE OTHER RUNWAY DIRECTION","CHANGE RUNWAY",IF(OR(E39>=8000,E40>=40),"NO DATA AVAILABLE",IF(G47="PAVED",((1+R106)*Q102*(1+E49))*0.3048,IF(G47="GRASS",(((1+R106)*Q102+(0.45*P102))*(1+E49))*0.3048,"COMPLETE THE FORM"))))) -> COMPLETE THE FORM | G53: =IF(E39="COMPLETE THE FORM","COMPLETE THE FORM",IF(OR(E39>=8000,E40>=40),"NO DATA AVAILABLE, CHECK P.A. / TEMP",IF(G47="DEFINE TYPE","DEFINE TYPE OF RUNWAY",IF(E48="","COMPLETE THE FORM",IF(E53="CHANGE RUNWAY","TOO MUCH TAILWIND, USE OTHER RUNWAY DIRECTION",IF(E53>E48,"RUNWAY TOO SHORT",IF(E53<=E48,"RUNWAY LENGTH SUFFICIENT"))))))) -> COMPLETE THE FORM
B55: This document is provided for secondary flightplanning and navigation only. It is the user/pilot's sole responsibility to verify the correctness of all information provided by this sheet.
M84: Found & interpolated takeoff values (distances are in FEET) for safety weight of: | S84: =T20 -> 2200 | T84: lbs
N85: =M25 -> 0 | P85: =P25 -> 0 | R85: =N25 -> 0
N86: GRND ROLL | O86: TOTAL TO… | P86: GRND ROLL | Q86: TOTAL TO… | R86: GRND ROLL | S86: TOTAL TO…
M87: column index | N87: =2+(M25/10*2) -> 2 | O87: =3+(M25/10*2) -> 3 | R87: =2+(N25/10*2) -> 2 | S87: =3+(N25/10*2) -> 3
M88: =M23 ->  | N88: =VLOOKUP($M88,IF(S84=2200,'C172SP Performance specs'!$F$7:$O$15,IF(S84=2400,'C172SP Performance specs'!$E$16:$O$24,IF(S84=2550,'C172SP Performance specs'!$E$25:$O$33))),'Performance FORM'!N$87,FALSE) ->  | O88: =VLOOKUP($M88,IF(S84=2200,'C172SP Performance specs'!$F$7:$O$15,IF(S84=2400,'C172SP Performance specs'!$E$16:$O$24,IF(S84=2550,'C172SP Performance specs'!$E$25:$O$33))),'Performance FORM'!O$87,FALSE) ->  | R88: =VLOOKUP($M88,IF(S84=2200,'C172SP Performance specs'!$F$7:$O$15,IF(S84=2400,'C172SP Performance specs'!$E$16:$O$24,IF(S84=2550,'C172SP Performance specs'!$E$25:$O$33))),'Performance FORM'!R$87,FALSE) ->  | S88: =VLOOKUP($M88,IF(S84=2200,'C172SP Performance specs'!$F$7:$O$15,IF(S84=2400,'C172SP Performance specs'!$E$16:$O$24,IF(S84=2550,'C172SP Performance specs'!$E$25:$O$33))),'Performance FORM'!S$87,FALSE) -> 
M89: =P23 -> COMPLETE THE FORM | N89: =IF(P23<=0,N88,N88+((N90-N88)*(($M$89-$M$88)/($M$90-$M$88)))) ->  | O89: =IF(P23<=0,O88,O88+((O90-O88)*(($M$89-$M$88)/($M$90-$M$88)))) ->  | P89: =IF(P25<=0,N89,N89+((R89-N89)*((($P$85-$N$85)/($R$85-$N$85))))) ->  | Q89: =IF(P25<=0,O89,O89+((S89-O89)*((($P$85-$N$85)/($R$85-$N$85))))) ->  | R89: =IF(P23<=0,R88,R88+((R90-R88)*(($M$89-$M$88)/($M$90-$M$88)))) ->  | S89: =IF(P23<=0,S88,S88+((S90-S88)*(($M$89-$M$88)/($M$90-$M$88)))) -> 
M90: =N23 ->  | N90: =VLOOKUP($M90,IF(S84=2200,'C172SP Performance specs'!$F$7:$O$15,IF(S84=2400,'C172SP Performance specs'!$E$16:$O$24,IF(S84=2550,'C172SP Performance specs'!$E$25:$O$33))),'Performance FORM'!N$87,FALSE) ->  | O90: =VLOOKUP($M90,IF(S84=2200,'C172SP Performance specs'!$F$7:$O$15,IF(S84=2400,'C172SP Performance specs'!$E$16:$O$24,IF(S84=2550,'C172SP Performance specs'!$E$25:$O$33))),'Performance FORM'!O$87,FALSE) ->  | R90: =VLOOKUP($M90,IF(S84=2200,'C172SP Performance specs'!$F$7:$O$15,IF(S84=2400,'C172SP Performance specs'!$E$16:$O$24,IF(S84=2550,'C172SP Performance specs'!$E$25:$O$33))),'Performance FORM'!R$87,FALSE) ->  | S90: =VLOOKUP($M90,IF(S84=2200,'C172SP Performance specs'!$F$7:$O$15,IF(S84=2400,'C172SP Performance specs'!$E$16:$O$24,IF(S84=2550,'C172SP Performance specs'!$E$25:$O$33))),'Performance FORM'!S$87,FALSE) -> 
M92: Landing calculations
M93: look between PA [ft] | P93: needed value [ft]
M94: =IF(E39<=0,0,LEFT(E39/1000,1)*1000) ->  | N94: =IF(E39<=0,0,LEFT(E39/1000+1,1)*1000) ->  | P94: =E39 -> COMPLETE THE FORM
M95: look between temperatures [°C] | P95: needed value [°C]
M96: =IF(E40<=0,0,LEFT(E40/10,1)*10) -> 0 | N96: =IF(E40<=0,0,LEFT(E40/10+1,1)*10) -> 0 | P96: =E40 -> 0
M97: Found & interpolated landing values (distances are in FEET)
N98: =M96 -> 0 | P98: =P96 -> 0 | R98: =N96 -> 0
N99: GRND ROLL | O99: TOTAL TO… | P99: GRND ROLL | Q99: TOTAL TO… | R99: GRND ROLL | S99: TOTAL TO…
M100: column index | N100: =2+(M96/10*2) -> 2 | O100: =3+(M96/10*2) -> 3 | R100: =2+(N96/10*2) -> 2 | S100: =3+(N96/10*2) -> 3
M101: =M94 ->  | N101: =VLOOKUP($M101,'C172SP Performance specs'!$E$44:$O$52,'Performance FORM'!N$100,FALSE) ->  | O101: =VLOOKUP($M101,'C172SP Performance specs'!$E$44:$O$52,'Performance FORM'!O$100,FALSE) ->  | R101: =VLOOKUP($M101,'C172SP Performance specs'!$E$44:$O$52,'Performance FORM'!R$100,FALSE) ->  | S101: =VLOOKUP($M101,'C172SP Performance specs'!$E$44:$O$52,'Performance FORM'!S$100,FALSE) -> 
M102: =P94 -> COMPLETE THE FORM | N102: =IF($P$94<=0,N101,N101+((N103-N101)*(($M$102-$M$101)/($M$103-$M$101)))) ->  | O102: =IF($P$94<=0,O101,O101+((O103-O101)*(($M$102-$M$101)/($M$103-$M$101)))) ->  | P102: =IF(P96<=0,N102,N102+((R102-N102)*((($P$98-$N$98)/($R$98-$N$98))))) ->  | Q102: =IF(P96<=0,O102,O102+((S102-O102)*((($P$98-$N$98)/($R$98-$N$98))))) ->  | R102: =IF($P$94<=0,R101,R101+((R103-R101)*(($M$102-$M$101)/($M$103-$M$101)))) ->  | S102: =IF($P$94<=0,S101,S101+((S103-S101)*(($M$102-$M$101)/($M$103-$M$101)))) -> 
M103: =N94 ->  | N103: =VLOOKUP($M103,'C172SP Performance specs'!$E$44:$O$52,'Performance FORM'!N$100,FALSE) ->  | O103: =VLOOKUP($M103,'C172SP Performance specs'!$E$44:$O$52,'Performance FORM'!O$100,FALSE) ->  | R103: =VLOOKUP($M103,'C172SP Performance specs'!$E$44:$O$52,'Performance FORM'!R$100,FALSE) ->  | S103: =VLOOKUP($M103,'C172SP Performance specs'!$E$44:$O$52,'Performance FORM'!S$100,FALSE) -> 
M105: Landing wind calculations | R105: change in landing distance
M106: headwind component [kts] | O106: =E44*COS((ABS((E46*10)-E43)*PI()/180)) -> 0 | P106: =IF(O106>=0,"HEADWIND",IF(O106<0,"TAILWIND","")) -> HEADWIND | R106: =IF(O106>=0,O106/9*-0.1,IF(AND(O106<0,O106>=-10),ABS(O106/2*0.1),"USE OTHER RUNWAY DIRECTION")) -> 0
M107: crosswind component [kts] | O107: =E44*SIN((ABS((E46*10)-E43)*PI()/180)) -> 0 | P107: CROSSWIND

Sheet C172SP Performance specs
B2: DATA C172SP*
B3: * ALL DATA IS BASED ON THE CESSNA SKYHAWK SP MODEL 172S NAV III
B4: Takeoff distance | C4: (flaps 10°, full throttle prior to brake release, paved, level, dry runway, zero wind) | O4: DATA FOUND ON PAGE 5-14, 5-15, 5-16
B5: Weight (lbs) | C5: Takeoff speed (KIAS) | E5: Pressure altitude (ft) | F5: 0°C | H5: 10°C | J5: 20°C | L5: 30°C | N5: 40°C
C6: Lift off | D6: at 50ft | F6: Grnd roll | G6: tot to clear 50ft obs | H6: Grnd roll | I6: tot to clear 50ft obs | J6: Grnd roll | K6: tot to clear 50ft obs | L6: Grnd roll | M6: tot to clear 50ft obs | N6: Grnd roll | O6: tot to clear 50ft obs
B7: 2200 | C7: 44 | D7: 50 | E7: 0 | F7: 610 | G7: 1055 | H7: 655 | I7: 1130 | J7: 705 | K7: 1205 | L7: 760 | M7: 1290 | N7: 815 | O7: 1380
E8: 1000 | F8: 665 | G8: 1145 | H8: 720 | I8: 1230 | J8: 770 | K8: 1315 | L8: 830 | M8: 1410 | N8: 890 | O8: 1505
E9: 2000 | F9: 725 | G9: 1250 | H9: 785 | I9: 1340 | J9: 845 | K9: 1435 | L9: 905 | M9: 1540 | N9: 975 | O9: 1650
E10: 3000 | F10: 795 | G10: 1365 | H10: 860 | I10: 1465 | J10: 925 | K10: 1570 | L10: 995 | M10: 1685 | N10: 1065 | O10: 1805
E11: 4000 | F11: 870 | G11: 1490 | H11: 940 | I11: 1605 | J11: 1010 | K11: 1725 | L11: 1090 | M11: 1855 | N11: 1165 | O11: 1975
E12: 5000 | F12: 955 | G12: 1635 | H12: 1030 | I12: 1765 | J12: 1110 | K12: 1900 | L12: 1195 | M12: 2035 | N12: 1275 | O12: 2175
E13: 6000 | F13: 1050 | G13: 1800 | H13: 1130 | I13: 1940 | J13: 1220 | K13: 2090 | L13: 1310 | M13: 2240 | N13: 1400 | O13: 2395
E14: 7000 | F14: 1150 | G14: 1985 | H14: 1245 | I14: 2145 | J14: 1340 | K14: 2305 | L14: 1435 | M14: 2475 | N14: 1540 | O14: 2650
E15: 8000 | F15: 1270 | G15: 2195 | H15: 1370 | I15: 2375 | J15: 1475 | K15: 2555 | L15: 1580 | M15: 2745 | N15: 1695 | O15: 2950
B16: 2400 | C16: 48 | D16: 54 | E16: 0 | F16: 745 | G16: 1275 | H16: 800 | I16: 1370 | J16: 860 | K16: 1470 | L16: 925 | M16: 1570 | N16: 995 | O16: 1685
E17: 1000 | F17: 810 | G17: 1390 | H17: 875 | I17: 1495 | J17: 940 | K17: 1605 | L17: 1010 | M17: 1720 | N17: 1085 | O17: 1845
E18: 2000 | F18: 885 | G18: 1520 | H18: 955 | I18: 1635 | J18: 1030 | K18: 1760 | L18: 1110 | M18: 1890 | N18: 1190 | O18: 2030
E19: 3000 | F19: 970 | G19: 1665 | H19: 1050 | I19: 1795 | J19: 1130 | K19: 1930 | L19: 1215 | M19: 2080 | N19: 1305 | O19: 2230
E20: 4000 | F20: 1065 | G20: 1830 | H20: 1150 | I20: 1975 | J20: 1240 | K20: 2130 | L20: 1335 | M20: 2295 | N20: 1430 | O20: 2455
E21: 5000 | F21: 1170 | G21: 2015 | H21: 1265 | I21: 2180 | J21: 1360 | K21: 2355 | L21: 1465 | M21: 2530 | N21: 1570 | O21: 2715
E22: 6000 | F22: 1285 | G22: 2230 | H22: 1390 | I22: 2410 | J22: 1500 | K22: 2610 | L22: 1610 | M22: 2805 | N22: 1725 | O22: 3015
E23: 7000 | F23: 1415 | G23: 2470 | H23: 1530 | I23: 2685 | J23: 1650 | K23: 2900 | L23: 1770 | M23: 3125 | N23: 1900 | O23: 3370
E24: 8000 | F24: 1560 | G24: 2755 | H24: 1690 | I24: 3000 | J24: 1815 | K24: 3240 | L24: 1950 | M24: 3500 | N24: 2095 | O24: 3790
B25: 2550 | C25: 51 | D25: 56 | E25: 0 | F25: 860 | G25: 1465 | H25: 925 | I25: 1575 | J25: 995 | K25: 1690 | L25: 1070 | M25: 1810 | N25: 1150 | O25: 1945
E26: 1000 | F26: 940 | G26: 1600 | H26: 1010 | I26: 1720 | J26: 1090 | K26: 1850 | L26: 1170 | M26: 1990 | N26: 1260 | O26: 2135
E27: 2000 | F27: 1025 | G27: 1755 | H27: 1110 | I27: 1890 | J27: 1195 | K27: 2035 | L27: 1285 | M27: 2190 | N27: 1380 | O27: 2355
E28: 3000 | F28: 1125 | G28: 1925 | H28: 1215 | I28: 2080 | J28: 1310 | K28: 2240 | L28: 1410 | M28: 2420 | N28: 1515 | O28: 2605
E29: 4000 | F29: 1235 | G29: 2120 | H29: 1335 | I29: 2295 | J29: 1440 | K29: 2480 | L29: 1550 | M29: 2685 | N29: 1660 | O29: 2880
E30: 5000 | F30: 1355 | G30: 2345 | H30: 1465 | I30: 2545 | J30: 1585 | K30: 2755 | L30: 1705 | M30: 2975 | N30: 1825 | O30: 3205
E31: 6000 | F31: 1495 | G31: 2605 | H31: 1615 | I31: 2830 | J31: 1745 | K31: 3075 | L31: 1875 | M31: 3320 | N31: 2010 | O31: 3585
E32: 7000 | F32: 1645 | G32: 2910 | H32: 1785 | I32: 3170 | J32: 1920 | K32: 3440 | L32: 2065 | M32: 3730 | N32: 2215 | O32: 4045
E33: 8000 | F33: 1820 | G33: 3265 | H33: 1970 | I33: 3575 | J33: 2120 | K33: 3880 | L33: 2280 | M33: 4225 | N33: 2450 | O33: 4615
B35: Remarks
B36: 1 | C36: Short field technique as specified in section 4
B37: 2 | C37: Prior to takeoff from fields above 3000 ft elevation, the mixture should be leaned to give maximum RPM in a full throttle static runup
B38: 3 | C38: Decrease distances by 10% for each 9kts headwind. For operation with tailwinds up to 10kts, increase distances by 10% for each 2 knots
B39: 4 | C39: For operation on a dry, grass runway, increase distances by 15% of the "ground roll" figure
B41: Landing distance | C41: (flaps 40°, power off, maximum braking, paved, level, dry runway, zero wind) | O41: DATA FOUND ON PAGE 5-23/5-24
B42: Weight (lbs) | C42: speed at 50 ft (KIAS) | E42: Pressure altitude (ft) | F42: 0°C | H42: 10°C | J42: 20°C | L42: 30°C | N42: 40°C
F43: Grnd roll | G43: tot to clear 50ft obs | H43: Grnd roll | I43: tot to clear 50ft obs | J43: Grnd roll | K43: tot to clear 50ft obs | L43: Grnd roll | M43: tot to clear 50ft obs | N43: Grnd roll | O43: tot to clear 50ft obs
B44: 2550 | C44: 61 | E44: 0 | F44: 545 | G44: 1290 | H44: 565 | I44: 1320 | J44: 585 | K44: 1350 | L44: 605 | M44: 1380 | N44: 625 | O44: 1415
E45: 1000 | F45: 565 | G45: 1320 | H45: 585 | I45: 1350 | J45: 605 | K45: 1385 | L45: 625 | M45: 1420 | N45: 650 | O45: 1450
E46: 2000 | F46: 585 | G46: 1355 | H46: 610 | I46: 1385 | J46: 630 | K46: 1420 | L46: 650 | M46: 1455 | N46: 670 | O46: 1490
E47: 3000 | F47: 610 | G47: 1385 | H47: 630 | I47: 1425 | J47: 655 | K47: 1460 | L47: 675 | M47: 1495 | N47: 695 | O47: 1530
E48: 4000 | F48: 630 | G48: 1425 | H48: 655 | I48: 1460 | J48: 675 | K48: 1495 | L48: 700 | M48: 1535 | N48: 725 | O48: 1570
E49: 5000 | F49: 655 | G49: 1460 | H49: 680 | I49: 1500 | J49: 705 | K49: 1535 | L49: 725 | M49: 1575 | N49: 750 | O49: 1615
E50: 6000 | F50: 680 | G50: 1500 | H50: 705 | I50: 1540 | J50: 730 | K50: 1580 | L50: 755 | M50: 1620 | N50: 780 | O50: 1660
E51: 7000 | F51: 705 | G51: 1545 | H51: 730 | I51: 1585 | J51: 760 | K51: 1625 | L51: 785 | M51: 1665 | N51: 810 | O51: 1705
E52: 8000 | F52: 735 | G52: 1585 | H52: 760 | I52: 1630 | J52: 790 | K52: 1670 | L52: 815 | M52: 1715 | N52: 840 | O52: 1755
B54: Remarks
B55: 1 | C55: Short field technique as specified in section 4
B56: 2 | C56: Decrease distances 10% for each 9kts headwind. For operations with tailwind up to 10kts, increase distances by 10% for each 2 kts
B57: 3 | C57: For operation on a dry, grass runway, increase distances by 45% of the "ground roll" figure
B58: 4 | C58: If landing with flaps up, increase the approach speed by 9 KIAS and allow for 35% longer distances
B60: Fuel for engine start, taxi and takeoff allowance | F60: 1.4 | G60: US Gal | O60: DATA FOUND ON PAGE 5-18

Sheet OO-VCK
B2: DATA OO-VCK
B3: LONG-RANGE FUEL TANKS
B4: Max usable fuel quantity | C4: 53 | D4: US Gal | E4: =C4*3.785412 -> 200.626836 | F4: l
B5: Unusable fuel | C5: 3 | D5: US Gal | E5: =C5*3.785412 -> 11.356236 | F5: l
B6: Max. Fuel flow | C6: 11.1 | D6: US Gal/hr | E6: =C6*3.785412 -> 42.0180732 | F6: l/u
B7: Max. endurance: | C7: =E4/E6 -> 4.774774775 | D7: uur | E7: =INT(C7)&":"&ROUND((C7-INT(C7))*60,0) -> 4:46
B9: W&B DATA | H9: BASED ON
B10: Empty Weight | C10: 780 | D10: kg | E10: =C10/0.45359 -> 1719.61463 | F10: lbs
B11: Arm | C11: 1.01 | D11: m
B12: Moment | C12: 787.1 | D12: m.kg
B14: Max weight
B15: normal category | C15: 1156 | D15: kg | E15: =C15/0.45359 -> 2548.557067 | F15: lbs
B16: utility category | C16: 997 | D16: kg | E16: =C16/0.45359 -> 2198.020239 | F16: lbs
B18: Max weight baggage areas
B19: area1 | C19: 120 | D19: lbs | E19: =C19*0.45359 -> 54.4308 | F19: kg | G19: max 120 lbs in area 1 AND area 2
B20: area2 | C20: 50 | D20: lbs | E20: 22.6795 | F20: kg
B22: W&B Center of Gravity limits graph
B23: NORMAL CATEGORY | D23: UTILITY CATEGORY
B24: arm [m] | C24: weight [kg] | D24: arm [m] | E24: weight [kg]
B25: 0.95 | C25: 0 | D25: 0.95 | E25: 0
B26: 0.95 | C26: 997 | D26: 0.95 | E26: 997
B27: 1.04 | C27: 1156 | D27: 1.03 | E27: 997
B28: 1.2 | C28: 1156 | D28: 1.03 | E28: 997
B29: 1.2 | C29: 1156 | D29: 1.03 | E29: 0
B30: 1.2 | C30: 0
D31: in utility category the rear seat must not be occupied and the baggage compartment must be empty
